bitfinex/quotes_BTCUSD_20230901
["timestamp","ask_amount","ask_price","bid_price","bid_amount"]
[1693593720178,0.2435,25646.0,25643.0,0.05264699]
[1693593720381,0.5166,25649.0,25646.0,0.02]
[1693593720585,0.5166,25649.0,25647.0,0.03264699]
[1693593720586,0.5116,25649.0,25647.0,0.03264699]
[1693593721229,0.5116,25649.0,25646.0,0.02]
[1693593721879,0.5286,25649.0,25647.0,0.003]
[1693593722283,0.037,25649.0,25648.0,0.11331186]
[1693593722705,0.017,25649.0,25648.0,0.03331186]
[1693593723110,0.037,25649.0,25648.0,0.03331186]
[1693593723282,0.037,25649.0,25648.0,0.08]
[1693593723565,0.037,25649.0,25648.0,0.46708678]
[1693593723738,0.02,25649.0,25648.0,0.5003648]
[1693593723941,0.037,25649.0,25648.0,0.11327802]
[1693593724341,0.2435,25651.0,25650.0,0.02]
[1693593724768,0.2731,25652.0,25651.0,0.02]
[1693593725110,0.2435,25656.0,25653.0,0.02]
[1693593725311,0.5143,25658.0,25655.0,0.02]
[1693593725509,0.06,25661.0,25655.0,0.05264699]
[1693593725510,0.2435,25656.0,25655.0,0.05264699]
[1693593725711,0.2435,25656.0,25655.0,0.02]
[1693593726136,0.2435,25656.0,25655.0,0.43973377]
[1693593726344,0.019,25656.0,25655.0,0.02]
[1693593726540,0.2625,25656.0,25655.0,0.02]
[1693593726744,0.2625,25656.0,25655.0,0.05208614]
[1693593727191,0.2785,25656.0,25655.0,0.05208614]
[1693593727399,0.47927977,25656.0,25655.0,0.05208614]
[1693593727598,0.6555,25656.0,25655.0,0.05208614]
[1693593727851,1.29308678,25656.0,25655.0,0.03208614]
[1693593728056,1.30508678,25656.0,25655.0,0.03308614]
[1693593728260,1.32108678,25656.0,25655.0,0.003]
[1693593728484,1.54436121,25656.0,25655.0,0.002]
[1693593728692,0.520086,25656.0,25653.0,0.02]
[1693593728875,0.50862071,25656.0,25655.0,0.006]
[1693593729319,2.09366549,25656.0,25655.0,0.006]
[1693593729524,2.09366549,25656.0,25650.0,0.02098993]
[1693593729525,0.472,25653.0,25650.0,0.00098993]
[1693593729813,0.2435,25648.0,25646.0,0.02]
[1693593730101,0.2435,25648.0,25644.0,0.02]
[1693593730102,0.15483471,25647.0,25644.0,0.00098727]
[1693593730342,0.95392149,25647.0,25644.0,0.00098727]
[1693593730603,0.95392149,25647.0,25642.0,0.02]
[1693593730604,2.12365849,25647.0,25642.0,0.02]
[1693593730859,2.12365849,25647.0,25639.0,0.04]
[1693593730860,0.412,25642.0,25639.0,0.02]
[1693593731114,0.15483471,25641.0,25640.0,0.02]
[1693593731383,0.39833471,25641.0,25640.0,0.02]
[1693593731853,0.2435,25641.0,25640.0,0.02]
[1693593732143,0.2435,25641.0,25640.0,0.08]
[1693593732396,0.453,25642.0,25641.0,0.08]
[1693593732397,0.04,25642.0,25641.0,0.08]
[1693593732641,0.2435,25648.0,25641.0,0.08]
[1693593732642,0.2435,25645.0,25641.0,0.08]
[1693593732895,0.2435,25645.0,25644.0,0.02]
[1693593733157,0.63058678,25645.0,25642.0,0.02]
[1693593733431,0.63058678,25645.0,25641.0,0.02877667]
[1693593733432,0.6555,25643.0,25641.0,0.02877667]
[1693593733683,0.412,25641.0,25640.0,0.005]
[1693593733938,0.412,25641.0,25639.0,0.00099519]
[1693593733939,0.6555,25641.0,25639.0,0.00099519]
[1693593734185,0.6555,25641.0,25640.0,0.003]
[1693593734186,0.6865,25641.0,25640.0,0.003]
[1693593734703,0.6555,25641.0,25638.0,0.02]
[1693593734973,0.6595,25641.0,25638.0,0.02]
[1693593735262,0.2435,25639.0,25638.0,0.02]
[1693593735829,0.001,25641.0,25640.0,0.02]
[1693593736527,0.001,25641.0,25640.0,0.04883064]
[1693593736978,0.001,25641.0,25640.0,0.02]
[1693593737207,0.80008678,25641.0,25638.0,0.033]
[1693593737447,0.412,25639.0,25638.0,0.035]
[1693593737656,0.79908678,25639.0,25638.0,0.022]
[1693593737860,0.80008678,25639.0,25638.0,0.014]
[1693593738063,0.80008678,25639.0,25636.0,0.02]
[1693593738064,0.79908678,25639.0,25636.0,0.02]
[1693593738274,0.6555,25637.0,25635.0,0.02098396]
[1693593738478,1.19742149,25637.0,25635.0,0.02098396]
[1693593738685,1.04258678,25637.0,25635.0,0.02]
[1693593739168,0.2835,25637.0,25635.0,0.02]
[1693593739381,0.2435,25637.0,25635.0,0.02]
[1693593739586,0.2435,25637.0,25635.0,0.057]
[1693593739587,0.2465,25637.0,25635.0,0.057]
[1693593739811,0.63358678,25637.0,25635.0,0.057]
[1693593740226,0.21389555,25636.0,25635.0,0.057]
[1693593740641,0.21389555,25636.0,25635.0,0.094]
[1693593741271,0.21389555,25636.0,25635.0,0.02]
[1693593741473,1.97231478,25636.0,25635.0,0.037]
[1693593741685,0.13782,25638.0,25635.0,0.037]
[1693593741686,0.05908939,25649.0,25646.0,0.02]
[1693593741905,0.09163135,25656.0,25655.0,0.04]
[1693593742133,0.0394,25666.0,25655.0,0.04]
[1693593742134,0.0194,25666.0,25665.0,0.04]
[1693593742370,0.0194,25666.0,25665.0,0.1]
[1693593742626,0.0194,25666.0,25664.0,0.02]
[1693593742847,0.0194,25666.0,25665.0,0.02]
[1693593743064,0.412,25664.0,25663.0,0.0194]
[1693593743277,0.412,25664.0,25662.0,0.02]
[1693593743732,0.0194,25666.0,25662.0,0.02]
[1693593744380,0.0214,25666.0,25665.0,0.057]
[1693593744588,0.0194,25666.0,25665.0,0.02]
[1693593745007,0.0204,25666.0,25665.0,0.02]
[1693593745217,0.0194,25666.0,25665.0,0.02]
[1693593745430,0.0194,25666.0,25665.0,0.026]
[1693593745640,0.0194,25666.0,25665.0,0.006]
[1693593745641,0.0204,25666.0,25665.0,0.006]
[1693593745845,0.0204,25666.0,25665.0,0.026]
[1693593746054,0.0204,25666.0,25665.0,0.02]
[1693593746258,0.85870298,25666.0,25663.0,0.02]
[1693593746456,0.2435,25664.0,25663.0,0.02]
[1693593746702,0.412,25664.0,25663.0,0.02]
[1693593746918,0.99392149,25664.0,25660.0,0.00099839]
[1693593747128,0.6955,25662.0,25660.0,0.00099839]
[1693593747337,1.04258678,25661.0,25654.0,0.02]
[1693593747559,0.6555,25659.0,25654.0,0.02]
[1693593747768,0.56683471,25659.0,25654.0,0.02]
[1693593747951,0.27033181,25658.0,25654.0,0.02]
[1693593748592,0.27033181,25658.0,25656.0,0.023]
[1693593749632,0.27633181,25658.0,25656.0,0.023]
[1693593749847,0.27633181,25658.0,25656.0,0.02]
[1693593750268,0.27633181,25658.0,25656.0,0.023]
[1693593750490,0.006,25658.0,25656.0,0.023]
[1693593751148,0.38708678,25657.0,25656.0,0.003]
[1693593751409,0.79908678,25657.0,25656.0,0.003]
[1693593751623,0.27303034,25657.0,25656.0,0.003]
[1693593751832,0.006,25658.0,25656.0,0.003]
[1693593752033,0.006,25658.0,25657.0,0.02]
[1693593752241,0.20264972,25657.0,25656.0,0.023]
[1693593752467,0.5372,25661.0,25658.0,0.02]
[1693593752672,0.412,25660.0,25658.0,0.02]
[1693593753086,0.22918478,25659.0,25658.0,0.02]
[1693593753909,1.04258678,25659.0,25658.0,0.001]
[1693593754353,1.31988446,25659.0,25657.0,0.02936961]
[1693593754563,1.04258678,25659.0,25657.0,0.02]
[1693593754766,1.08558678,25659.0,25658.0,0.003]
[1693593755230,0.30772675,25659.0,25658.0,0.003]
[1693593755640,0.84208678,25659.0,25658.0,0.003]
[1693593756050,0.81908678,25659.0,25658.0,0.002]
[1693593756257,1.07039321,25659.0,25658.0,0.002]
[1693593756479,0.81908678,25659.0,25658.0,0.002]
[1693593756664,0.64823042,25659.0,25658.0,0.002]
[1693593756908,0.23623042,25659.0,25658.0,0.002]
[1693593757111,0.22623042,25659.0,25658.0,0.002]
[1693593757547,0.22623042,25659.0,25658.0,0.003]
[1693593757548,0.24923042,25659.0,25658.0,0.003]
[1693593757982,0.66296328,25659.0,25658.0,0.003]
[1693593758190,0.455,25659.0,25658.0,0.003]
[1693593758612,0.71638195,25659.0,25658.0,0.003]
[1693593759675,0.043,25659.0,25658.0,0.003]
[1693593760095,1.05402347,25659.0,25658.0,0.003]
[1693593760297,1.08558678,25659.0,25658.0,0.003]
[1693593760714,1.33198103,25659.0,25658.0,0.003]
[1693593760919,1.32197677,25659.0,25658.0,0.003]
[1693593761128,0.95492441,25659.0,25658.0,0.003]
[1693593761335,0.455,25659.0,25658.0,0.003]
[1693593761547,0.70435777,25659.0,25658.0,0.003]
[1693593762038,0.30671282,25659.0,25658.0,0.003]
[1693593762447,0.455,25659.0,25658.0,0.003]
[1693593762676,0.6985,25659.0,25658.0,0.003]
[1693593762886,1.29495827,25659.0,25658.0,0.003]
[1693593763093,1.08558678,25659.0,25658.0,0.003]
[1693593763684,1.34913819,25659.0,25658.0,0.003]
[1693593763891,0.50932529,25659.0,25658.0,0.003]
[1693593764732,0.2865,25659.0,25658.0,0.003]
[1693593764935,0.50527526,25659.0,25658.0,0.003]
[1693593765379,0.5395318,25659.0,25658.0,0.003]
[1693593765787,0.6935,25659.0,25658.0,0.003]
[1693593765940,0.92039688,25659.0,25658.0,0.003]
[1693593767373,0.88139688,25659.0,25658.0,0.003]
[1693593768470,0.322932,25661.0,25658.0,0.003]
[1693593768676,0.63058678,25660.0,25658.0,0.003]
[1693593768880,0.70924678,25660.0,25658.0,0.003]
[1693593769088,0.06,25655.0,25654.0,0.00098597]
[1693593769316,0.06,25655.0,25644.0,0.15770598]
[1693593769317,0.04,25651.0,25644.0,0.02]
[1693593769535,1.53873149,25650.0,25646.0,0.02]
[1693593769747,0.2435,25647.0,25645.0,0.02]
[1693593769955,0.6555,25647.0,25646.0,0.02]
[1693593770165,0.6555,25647.0,25642.0,0.069248]
[1693593770166,0.6555,25647.0,25645.0,0.02]
[1693593770368,0.724748,25647.0,25644.0,0.02]
[1693593770584,0.7155,25644.0,25641.0,0.00099645]
[1693593770790,0.472,25642.0,25641.0,0.00099645]
[1693593770998,0.472,25642.0,25635.0,0.02]
[1693593770999,0.412,25640.0,25635.0,0.02]
[1693593771203,0.2435,25636.0,25635.0,0.02]
[1693593771408,0.2435,25636.0,25630.0,0.38334807]
[1693593771409,0.9512015,25636.0,25630.0,0.38334807]
[1693593771616,0.9512015,25636.0,25631.0,0.02]
[1693593771617,0.40656002,25634.0,25631.0,0.02]
[1693593771823,0.39833471,25633.0,25629.0,0.19623098]
[1693593772031,0.39833471,25633.0,25628.0,0.22666498]
[1693593772235,0.39833471,25633.0,25629.0,0.029263]
[1693593772436,0.39833471,25633.0,25629.0,0.098526]
[1693593772777,0.39833471,25633.0,25631.0,0.037]
[1693593772979,0.2435,25633.0,25631.0,0.037]
[1693593773353,0.2435,25633.0,25629.0,0.098526]
[1693593773565,0.27218535,25632.0,25629.0,0.135526]
[1693593773775,0.67874537,25632.0,25630.0,0.037]
[1693593774007,0.67874537,25632.0,25629.0,0.106263]
[1693593774008,0.40656002,25632.0,25629.0,0.106263]
[1693593774241,0.6178701,25632.0,25631.0,0.004]
[1693593774441,0.64487314,25632.0,25629.0,0.106263]
[1693593774644,0.64487314,25632.0,25629.0,0.135526]
[1693593774847,0.64487314,25632.0,25629.0,0.098526]
[1693593775258,0.64687314,25632.0,25631.0,0.012]
[1693593775679,0.40856002,25632.0,25629.0,0.100263]
[1693593775883,0.02,25639.0,25633.0,0.04]
[1693593776096,0.2684,25640.0,25634.0,0.058514]
[1693593776097,0.24678941,25638.0,25634.0,0.058514]
[1693593776304,0.24678941,25638.0,25634.0,0.087771]
[1693593776510,0.24178941,25638.0,25634.0,0.087771]
[1693593777295,0.24378941,25638.0,25634.0,0.087771]
[1693593777453,0.65378941,25638.0,25634.0,0.058514]
[1693593777658,0.65378941,25638.0,25634.0,0.082514]
[1693593777864,0.74156041,25638.0,25634.0,0.082514]
[1693593778086,0.74156041,25638.0,25637.0,0.04]
[1693593778087,0.087771,25638.0,25637.0,0.04]
[1693593778289,0.001,25638.0,25637.0,0.52559478]
[1693593778461,0.001,25638.0,25637.0,0.88410278]
[1693593778664,0.02,25645.0,25637.0,0.88410278]
[1693593778868,0.02,25645.0,25638.0,0.38708678]
[1693593779066,0.02,25645.0,25640.0,0.087753]
[1693593779669,0.035,25645.0,25640.0,0.087753]
[1693593780781,0.035,25645.0,25642.0,0.087744]
[1693593780782,0.015,25645.0,25642.0,0.087744]
[1693593780989,0.002,25645.0,25642.0,0.087744]
[1693593781188,0.27460053,25644.0,25642.0,0.087744]
[1693593781787,0.27460053,25644.0,25642.0,0.029248]
[1693593782021,0.24459076,25644.0,25642.0,0.066248]
[1693593782390,0.24459076,25644.0,25642.0,0.103248]
[1693593782800,0.24459076,25644.0,25643.0,0.02581042]
[1693593783222,0.24459076,25644.0,25642.0,0.066248]
[1693593783223,0.24459076,25644.0,25642.0,0.029248]
[1693593783683,0.24459076,25644.0,25642.0,0.066248]
[1693593783800,0.24459076,25644.0,25641.0,0.098498]
[1693593784003,0.412,25641.0,25638.0,0.00099328]
[1693593784211,0.2435,25639.0,25638.0,0.00099328]
[1693593784437,0.2435,25639.0,25635.0,0.069255]
[1693593784648,0.15483471,25639.0,25635.0,0.098511]
[1693593784816,0.15483471,25639.0,25635.0,0.127767]
[1693593785337,0.9295,25641.0,25638.0,0.038]
[1693593785536,0.001,25639.0,25638.0,0.038]
[1693593785968,1.057267,25641.0,25638.0,0.038]
[1693593786528,1.057267,25641.0,25635.0,0.105255]
[1693593786529,0.413,25639.0,25635.0,0.105255]
[1693593786639,0.22550576,25638.0,25635.0,0.10623736]
[1693593786856,0.38034047,25638.0,25635.0,0.13123736]
[1693593787075,0.22550576,25638.0,25636.0,0.02400439]
[1693593787340,0.22550576,25638.0,25635.0,0.10623736]
[1693593787790,0.26301319,25638.0,25636.0,0.02400439]
[1693593787999,0.645267,25641.0,25637.0,0.058508]
[1693593788206,0.25798107,25638.0,25637.0,0.058508]
[1693593788816,0.25898107,25638.0,25637.0,0.08251098]
[1693593788945,0.001,25638.0,25637.0,0.08251098]
[1693593789146,0.21923381,25638.0,25637.0,0.08251098]
[1693593789350,0.21823381,25638.0,25637.0,0.08251098]
[1693593789555,0.401767,25641.0,25637.0,0.09251098]
[1693593789919,0.402767,25641.0,25637.0,0.068508]
[1693593790037,0.401767,25641.0,25637.0,0.068508]
[1693593790237,0.401767,25641.0,25639.0,0.02]
[1693593791147,0.001,25641.0,25640.0,0.107753]
[1693593791351,0.02,25645.0,25643.0,0.02]
[1693593791551,0.078508,25645.0,25643.0,0.02]
[1693593791893,0.24640817,25644.0,25643.0,0.02]
[1693593792728,0.24640817,25644.0,25643.0,0.021]
[1693593793447,0.330008,25645.0,25643.0,0.021]
[1693593793448,0.742008,25645.0,25643.0,0.021]
[1693593793650,0.742008,25645.0,25643.0,0.04514026]
[1693593793965,0.006,25644.0,25643.0,0.022]
[1693593794416,0.79908678,25644.0,25640.0,0.02]
[1693593794593,0.412,25642.0,25641.0,0.02]
[1693593794926,0.2435,25641.0,25640.0,0.02]
[1693593795745,0.2435,25641.0,25640.0,0.041]
[1693593796100,0.2435,25641.0,25640.0,0.02]
[1693593796305,0.2435,25641.0,25640.0,0.041]
[1693593796511,0.2445,25641.0,25640.0,0.041]
[1693593796687,0.2445,25641.0,25640.0,0.052]
[1693593796896,0.4698298,25641.0,25640.0,0.052]
[1693593797297,0.2445,25641.0,25640.0,0.052]
[1693593797527,0.49325763,25641.0,25640.0,0.052]
[1693593798346,0.24975763,25641.0,25640.0,0.052]
[1693593798551,1.65044725,25641.0,25640.0,0.032]
[1693593798893,3.11241254,25641.0,25640.0,0.032]
[1693593799045,3.10371254,25641.0,25640.0,0.011]
[1693593799252,3.09893254,25641.0,25640.0,0.011]
[1693593799479,3.10638766,25641.0,25640.0,0.022]
[1693593799683,3.10668766,25641.0,25640.0,0.022]
[1693593799841,3.12132766,25641.0,25640.0,0.025]
[1693593800046,3.11544766,25641.0,25640.0,0.022]
[1693593800324,3.11754766,25641.0,25640.0,0.022]
[1693593800443,3.65074287,25641.0,25640.0,0.025]
[1693593800648,3.65050287,25641.0,25640.0,0.025]
[1693593800893,0.02,25636.0,25633.0,0.02]
[1693593801126,0.02,25636.0,25632.0,0.02]
[1693593801127,0.02,25633.0,25632.0,0.02]
[1693593801285,1.21742149,25633.0,25632.0,0.02]
[1693593801640,1.06258678,25633.0,25632.0,0.02]
[1693593802831,0.021,25633.0,25632.0,0.55586678]
[1693593803040,0.033,25633.0,25632.0,0.55786678]
[1693593803228,0.02,25639.0,25633.0,0.45916892]
[1693593803377,0.02,25639.0,25638.0,0.02]
[1693593803762,0.432,25639.0,25638.0,0.02]
[1693593804389,0.52833162,25639.0,25638.0,0.02]
[1693593804593,0.432,25639.0,25638.0,0.02]
[1693593804796,0.771835,25639.0,25638.0,0.02]
[1693593805188,1.15892178,25639.0,25638.0,0.02]
[1693593805304,1.75496778,25639.0,25638.0,0.022]
[1693593806054,3.00341978,25639.0,25638.0,0.002]
[1693593806248,3.04211978,25639.0,25638.0,0.004]
[1693593806408,3.04307978,25639.0,25638.0,0.004]
[1693593806644,3.04175978,25639.0,25638.0,0.004]
[1693593806993,3.30145978,25639.0,25638.0,0.004]
[1693593807143,3.69098277,25639.0,25638.0,0.004]
[1693593807347,3.90542277,25639.0,25638.0,0.004]
[1693593807556,3.77404277,25639.0,25638.0,0.004]
[1693593807757,3.76858277,25639.0,25638.0,0.004]
[1693593808010,3.39527978,25639.0,25638.0,0.004]
[1693593808209,3.39575978,25639.0,25638.0,0.004]
[1693593808410,3.41003978,25639.0,25638.0,0.004]
[1693593808562,3.40721978,25639.0,25638.0,0.004]
[1693593808762,3.58877145,25639.0,25638.0,0.004]
[1693593808972,0.02,25635.0,25634.0,0.02]
[1693593809181,0.81908678,25635.0,25634.0,0.02]
[1693593809786,1.07594535,25635.0,25634.0,0.02]
[1693593810397,1.09994535,25635.0,25634.0,0.022]
[1693593810845,1.68508235,25635.0,25634.0,0.022]
[1693593811046,1.45222378,25635.0,25634.0,0.024]
[1693593811393,1.65412614,25635.0,25634.0,0.024]
[1693593812016,1.45222378,25635.0,25634.0,0.024]
[1693593812195,1.6773282,25635.0,25634.0,0.024]
[1693593812762,1.45222378,25635.0,25634.0,0.024]
[1693593812971,2.68987778,25635.0,25634.0,0.004]
[1693593813214,2.70475778,25635.0,25634.0,0.004]
[1693593813416,2.70031778,25635.0,25634.0,0.004]
[1693593813620,2.69983778,25635.0,25634.0,0.004]
[1693593813867,2.71417778,25635.0,25634.0,0.004]
[1693593814031,2.81231896,25635.0,25634.0,0.004]
[1693593814174,2.81063896,25635.0,25634.0,0.004]
[1693593814382,2.82017896,25635.0,25634.0,0.004]
[1693593814610,2.79983896,25635.0,25634.0,0.004]
[1693593814838,2.80067896,25635.0,25634.0,0.004]
[1693593815041,2.70079778,25635.0,25634.0,0.004]
[1693593815241,2.95942535,25635.0,25634.0,0.004]
[1693593815461,0.6674,25630.0,25629.0,0.00099843]
[1693593815620,3.53207449,25630.0,25629.0,0.00099843]
[1693593815866,0.6874,25629.0,25628.0,0.019695]
[1693593816066,0.6874,25629.0,25617.0,0.3501275]
[1693593816067,0.412,25622.0,25617.0,0.3501275]
[1693593816240,0.15483471,25621.0,25618.0,0.29702509]
[1693593816437,0.15483471,25621.0,25618.0,0.38818486]
[1693593816623,0.15483471,25621.0,25619.0,0.029275]
[1693593816816,0.1,25623.0,25619.0,0.05855]
[1693593817036,0.25483471,25623.0,25619.0,0.05855]
[1693593817230,0.25483471,25623.0,25619.0,0.087825]
[1693593817454,0.1,25623.0,25619.0,0.087825]
[1693593817656,0.6555,25624.0,25619.0,0.121825]
[1693593817657,0.003,25621.0,25619.0,0.121825]
[1693593818058,0.003,25621.0,25619.0,0.09255]
[1693593818427,0.21844679,25622.0,25619.0,0.05855]
[1693593818578,0.21844679,25622.0,25619.0,0.121825]
[1693593818981,0.004,25621.0,25619.0,0.09255]
[1693593819187,0.62026066,25622.0,25619.0,0.063275]
[1693593819397,0.412,25622.0,25619.0,0.034]
[1693593819602,0.62950139,25622.0,25619.0,0.056274]
[1693593819759,0.216155,25623.0,25619.0,0.087824]
[1693593819962,0.216155,25623.0,25619.0,0.121824]
[1693593819963,0.003,25621.0,25619.0,0.121824]
[1693593820160,0.007,25621.0,25619.0,0.148824]
[1693593820443,0.1,25623.0,25619.0,0.087824]
[1693593820778,0.1,25623.0,25619.0,0.114824]
[1693593820779,0.21071142,25621.0,25619.0,0.114824]
[1693593821299,0.21071142,25621.0,25619.0,0.148824]
[1693593821701,0.21071142,25621.0,25619.0,0.114824]
[1693593821906,0.23586412,25620.0,25619.0,0.087824]
[1693593822165,0.23586412,25620.0,25619.0,0.115824]
[1693593823093,0.23586412,25620.0,25619.0,0.092549]
[1693593823299,0.23586412,25620.0,25619.0,0.091274]
[1693593823300,0.23886412,25620.0,25619.0,0.091274]
[1693593823470,0.23886412,25620.0,25619.0,0.028]
[1693593823681,0.24186412,25620.0,25619.0,0.091275]
[1693593823875,0.418,25620.0,25619.0,0.062]
[1693593824518,0.6597364,25620.0,25619.0,0.062]
[1693593824718,0.67579937,25620.0,25619.0,0.028]
[1693593824936,0.67879937,25620.0,25619.0,0.062]
[1693593825119,0.67579937,25620.0,25619.0,0.034]
[1693593825431,0.415,25620.0,25619.0,0.037]
[1693593825571,0.6707149,25620.0,25619.0,0.034]
[1693593825777,0.415,25620.0,25619.0,0.035]
[1693593825975,0.81208678,25620.0,25619.0,0.035]
[1693593826185,1.08404115,25620.0,25619.0,0.001]
[1693593826381,0.29095437,25620.0,25619.0,0.002]
[1693593827649,0.29095437,25620.0,25619.0,0.02192816]
[1693593828003,0.29095437,25620.0,25619.0,0.002]
[1693593828299,1.07778678,25620.0,25619.0,0.002]
[1693593828688,1.66326678,25620.0,25619.0,0.002]
[1693593828920,0.03171028,25625.0,25620.0,0.02]
[1693593829133,0.09297219,25640.0,25620.0,0.02]
[1693593829134,0.1044337,25642.0,25634.0,0.02]
[1693593829345,0.1,25643.0,25638.0,0.1627]
[1693593829546,0.48708678,25643.0,25639.0,0.1627]
[1693593829776,0.104433,25642.0,25639.0,0.191952]
[1693593829985,0.104433,25642.0,25639.0,0.029252]
[1693593830196,0.0795,25646.0,25641.0,0.1827]
[1693593830197,0.0195,25646.0,25641.0,0.1827]
[1693593830407,0.23676522,25645.0,25644.0,0.1627]
[1693593831896,0.23676522,25645.0,25642.0,0.221196]
[1693593832122,0.009,25643.0,25642.0,0.191948]
[1693593832418,0.23676522,25645.0,25642.0,0.029248]
[1693593832622,0.24276522,25645.0,25644.0,0.066]
[1693593832829,0.23976522,25645.0,25644.0,0.035]
[1693593833030,0.23676522,25645.0,25642.0,0.029248]
[1693593833251,0.003,25643.0,25642.0,0.103248]
[1693593833480,0.0195,25646.0,25645.0,0.02]
[1693593833688,0.0195,25646.0,25645.0,0.107735]
[1693593833891,0.0195,25646.0,25645.0,0.407735]
[1693593835347,0.04,25655.0,25645.0,0.407735]
[1693593835348,0.24010942,25656.0,25651.0,0.02]
[1693593835548,0.24010942,25656.0,25653.0,0.301972]
[1693593835749,0.24010942,25656.0,25653.0,0.68905878]
[1693593836164,0.24010942,25656.0,25653.0,0.058472]
[1693593836365,0.24010942,25656.0,25651.0,0.338975]
[1693593836366,0.101,25656.0,25651.0,0.338975]
[1693593836569,0.06,25655.0,25652.0,0.029237]
[1693593836793,0.06,25655.0,25653.0,0.027]
[1693593837365,0.1,25655.0,25652.0,0.029237]
[1693593837772,0.1,25655.0,25652.0,0.058474]
[1693593837976,0.1,25655.0,25653.0,0.022]
[1693593838178,0.1,25655.0,25653.0,0.029236]
[1693593838556,0.27562207,25654.0,25652.0,0.036]
[1693593838738,0.27562207,25654.0,25652.0,0.029237]
[1693593839143,0.27483471,25654.0,25653.0,0.049]
[1693593839340,1.54379078,25654.0,25653.0,0.027]
[1693593839589,0.95908678,25654.0,25650.0,0.00098301]
[1693593839791,0.512,25653.0,25652.0,0.073]
[1693593840441,0.512,25653.0,25652.0,0.036]
[1693593840644,0.89908678,25653.0,25652.0,0.036]
[1693593840857,0.95908678,25653.0,25652.0,0.036]
[1693593841075,0.472,25652.0,25646.0,0.00099314]
[1693593841254,0.15483471,25651.0,25646.0,0.03023714]
[1693593841892,0.1,25648.0,25646.0,0.03023714]
[1693593842349,0.1,25648.0,25646.0,0.029244]
[1693593842530,0.1,25649.0,25646.0,0.066244]
[1693593842860,0.1,25648.0,25647.0,0.01957815]
[1693593843061,0.103,25648.0,25647.0,0.01957815]
[1693593843472,0.101,25648.0,25646.0,0.066244]
[1693593843700,0.101,25648.0,25646.0,0.132488]
[1693593843882,0.101,25648.0,25647.0,0.01957815]
[1693593844087,0.33278329,25648.0,25647.0,0.01957815]
[1693593844508,0.33278329,25648.0,25646.0,0.103244]
[1693593844720,0.33178329,25648.0,25646.0,0.066244]
[1693593844978,0.33178329,25648.0,25647.0,0.05658505]
[1693593844979,0.33278329,25648.0,25647.0,0.05658505]
[1693593845794,0.33478329,25648.0,25647.0,0.09358505]
[1693593846209,0.33478329,25648.0,25647.0,0.074]
[1693593848453,0.29478329,25648.0,25647.0,0.074]
[1693593848659,0.003,25648.0,25647.0,0.87994478]
[1693593848878,0.003,25648.0,25647.0,1.17994478]
[1693593849192,0.003,25648.0,25647.0,1.19883027]
[1693593850942,0.003,25648.0,25647.0,0.81174349]
[1693593851118,0.25787707,25648.0,25647.0,0.56834349]
[1693593852525,0.26995553,25648.0,25647.0,0.26834349]
[1693593852928,0.003,25648.0,25647.0,0.26834349]
[1693593855879,0.003,25648.0,25647.0,0.65543027]
[1693593857437,0.003,25648.0,25647.0,0.81773027]
[1693593858654,0.48303295,25648.0,25647.0,0.09288549]
[1693593858855,0.103,25648.0,25647.0,0.09288549]
[1693593859072,0.30650603,25648.0,25647.0,0.074]
[1693593859682,0.30650603,25648.0,25644.0,0.058492]
[1693593859683,0.1,25646.0,25644.0,0.058492]
[1693593860167,0.1,25646.0,25645.0,0.01772206]
[1693593861308,0.1,25646.0,25643.0,0.00099994]
[1693593861754,0.25247045,25645.0,25644.0,0.037]
[1693593861957,0.35247045,25645.0,25644.0,0.037]
[1693593862360,0.35247045,25645.0,25642.0,0.058495]
[1693593862563,0.35247045,25645.0,25643.0,0.037]
[1693593862763,0.35247045,25645.0,25644.0,0.01772346]
[1693593863145,0.35347045,25645.0,25644.0,0.05472346]
[1693593863341,0.35547045,25645.0,25644.0,0.09172346]
[1693593865619,0.103,25645.0,25644.0,0.09172346]
[1693593866092,0.103,25645.0,25644.0,0.074]
[1693593866291,0.535,25645.0,25644.0,0.074]
[1693593866492,0.535,25645.0,25644.0,0.037]
[1693593866493,2.55778488,25645.0,25644.0,0.037]
[1693593866671,2.55952488,25645.0,25644.0,0.037]
[1693593866876,2.71176367,25645.0,25644.0,0.037]
[1693593867119,2.73624546,25645.0,25644.0,0.037]
[1693593867274,2.48902488,25645.0,25644.0,0.037]
[1693593867684,3.14581388,25645.0,25644.0,0.037]
[1693593867905,3.14587388,25645.0,25644.0,0.048]
[1693593868107,3.18569594,25645.0,25644.0,0.037]
[1693593868314,0.02,25640.0,25639.0,0.00099381]
[1693593868515,0.02,25640.0,25637.0,0.058509]
[1693593868753,0.452,25642.0,25636.0,0.058509]
[1693593868754,0.1,25638.0,25636.0,0.058509]
[1693593868950,0.1,25638.0,25635.0,0.058513]
[1693593868951,0.02,25637.0,25635.0,0.117025]
[1693593869198,0.17483471,25637.0,25635.0,0.117025]
[1693593869409,0.02,25637.0,25635.0,0.117025]
[1693593869810,0.08,25640.0,25635.0,0.56262478]
[1693593870009,0.1,25641.0,25639.0,0.1624]
[1693593870344,0.02,25640.0,25639.0,0.54948678]
[1693593870483,0.02,25640.0,25639.0,0.66649478]